bitfinex/quotes_SOLUSD_20250204
["timestamp","ask_amount","ask_price","bid_price","bid_amount"]
[1738689316475,29.41212259,215.83,215.74,2.0]
[1738689316880,29.41212259,215.81,215.74,1.0]
[1738689317077,29.41212259,215.77,215.72,0.063]
[1738689317586,29.41212259,215.82,215.72,0.063]
[1738689317587,29.41212259,215.75,215.72,0.063]
[1738689317987,29.41212259,215.73,215.72,0.063]
[1738689318579,29.62974853,215.81,215.72,0.063]
[1738689318580,29.41212259,215.75,215.72,0.063]
[1738689319689,4.6352,215.74,215.72,0.063]
[1738689320485,4.6352,215.74,215.72,1.063]
[1738689320996,13.41184853,215.73,215.72,0.063]
[1738689321299,42.82397112,215.73,215.72,0.063]
[1738689321795,47.45937112,215.73,215.72,0.063]
[1738689322098,47.45937112,215.73,215.68,0.063]
[1738689322395,42.82397112,215.69,215.68,0.063]
[1738689323273,13.41184853,215.68,215.6,2.0]
[1738689323478,29.41212259,215.66,215.62,1.0]
[1738689323678,29.41212259,215.68,215.62,1.0]
[1738689323895,29.41212259,215.66,215.62,1.0]
[1738689324104,29.41212259,215.66,215.59,1.0]
[1738689324396,29.41212259,215.66,215.62,1.0]
[1738689324594,4.6367,215.67,215.64,1.0]
[1738689325491,42.82397112,215.66,215.61,1.0]
[1738689325692,42.82397112,215.66,215.59,1.0]
[1738689325892,4.6371,215.65,215.61,1.0]
[1738689326088,4.6371,215.65,215.59,1.0]
[1738689326399,4.6371,215.65,215.49,48.66445853]
[1738689326400,42.82397112,215.64,215.55,30.41212259]
[1738689326599,29.41212259,215.58,215.53,1.0]
[1738689326800,29.41212259,215.58,215.52,1.0]
[1738689326801,29.41212259,215.6,215.57,1.0]
[1738689326987,29.41212259,215.64,215.58,1.0]
[1738689327190,29.41212259,215.64,215.54,1.0]
[1738689327191,29.41212259,215.7,215.64,2.0]
[1738689327489,29.41212259,215.72,215.67,1.0]
[1738689327694,4.6354,215.73,215.7,1.0]
[1738689327889,29.41212259,215.74,215.68,1.0]
[1738689328208,6.5771,215.8,215.66,1.0]
[1738689328209,29.41212259,215.7,215.66,1.0]
[1738689328401,29.41212259,215.7,215.64,1.5747]
[1738689328402,29.41212259,215.72,215.68,1.0]
[1738689328702,18.15312702,215.73,215.68,1.0]
[1738689328884,18.15312702,215.73,215.67,1.0]
[1738689329083,18.15312702,215.71,215.66,1.0]
[1738689329493,18.15312702,215.71,215.67,1.0]
[1738689330007,4.6356,215.72,215.67,1.0]
[1738689330309,4.6356,215.72,215.69,1.0]
[1738689330887,4.6356,215.72,215.69,2.0]
[1738689331289,6.4371,216.07,215.89,1.37647]
[1738689331588,29.49445562,216.12,216.05,1.0]
[1738689331787,35.52085562,216.14,216.07,1.0]
[1738689331984,29.49445562,216.12,216.07,1.0]
[1738689332204,29.49445562,216.1,216.07,1.0]
[1738689332412,32.87109114,216.08,216.07,1.0]
[1738689332613,46.28293967,216.08,216.07,1.0]
[1738689332793,32.87109114,216.08,216.07,1.0]
[1738689334697,47.53420415,216.08,216.0,1.0]
[1738689335012,13.41184853,216.07,215.98,30.49445562]
[1738689335206,13.41184853,216.07,216.0,29.49445562]
[1738689335606,4.6579,216.08,216.04,1.0]
[1738689335809,4.6579,216.08,216.04,2.0]
[1738689336016,4.6579,216.08,216.06,31.49445562]
[1738689336214,4.6579,216.08,216.04,29.49445562]
[1738689336425,4.6579,216.08,216.02,31.49445562]
[1738689336730,0.03,216.08,216.05,1.0]
[1738689337493,0.03,216.08,215.92,1.0]
[1738689337494,29.49445562,216.07,216.0,1.0]
[1738689337693,29.49445562,216.05,215.97,1.0]
[1738689338114,13.41184853,216.04,215.96,29.49445562]
[1738689338827,4.6289,216.03,215.96,29.49445562]
[1738689338992,4.6289,216.03,216.01,1.0]
[1738689339202,4.6287,216.05,216.01,1.0]
[1738689339410,4.6287,216.05,216.04,1.0]
[1738689339614,4.6287,216.05,216.02,29.49445562]
[1738689340124,4.6287,216.05,216.0,29.49445562]
[1738689340293,4.6287,216.05,216.03,1.0]
[1738689340795,4.6287,216.05,216.03,0.5]
[1738689340997,0.03,216.08,216.05,0.5]
[1738689341435,0.03,216.08,216.07,0.5]
[1738689341715,13.44184853,216.08,216.01,0.5]
[1738689342326,13.44184853,216.08,216.04,0.5]
[1738689343121,4.6277,216.09,216.07,0.5]
[1738689343291,29.52445562,216.21,216.11,0.5]
[1738689343490,29.52445562,216.21,216.13,29.49445562]
[1738689343693,20.0,216.18,216.13,29.49445562]
[1738689343900,30.66645386,216.21,216.13,29.99445562]
[1738689343901,29.52445562,216.21,216.13,29.99445562]
[1738689344303,4.6255,216.19,216.13,29.99445562]
[1738689344915,4.6255,216.19,216.15,29.99445562]
[1738689345128,11.5633,216.2,216.15,29.99445562]
[1738689345422,11.5633,216.2,216.17,0.5]
[1738689345918,0.03,216.21,216.17,0.5]
[1738689346103,0.03,216.21,216.17,29.99445562]
[1738689346716,0.03,216.21,216.19,29.99445562]
[1738689347106,0.03,216.21,216.19,0.5]
[1738689347419,0.03,216.21,216.19,29.99445562]
[1738689350703,0.03,216.21,216.19,0.5]
[1738689350905,0.03,216.21,216.19,29.99445562]
[1738689352324,16.1841,216.26,216.19,29.99445562]
[1738689352513,23.1115,216.35,216.19,29.99445562]
[1738689352514,4.6154,216.67,216.66,1.0]
[1738689352695,4.6154,216.67,216.66,29.49445562]
[1738689352696,30.0,216.67,216.66,29.49445562]
[1738689352902,4.6127,216.79,216.72,1.0]
[1738689353203,12.68412121,216.86,216.78,29.49445562]
[1738689353405,12.68412121,216.86,216.8,29.49445562]
[1738689353406,11.5282,216.86,216.8,29.49445562]
[1738689353617,4.611,216.87,216.8,29.49445562]
[1738689353828,1.0,216.82,216.76,29.49445562]
[1738689354030,4.611,216.87,216.77,0.17261135]
[1738689354215,4.611,216.87,216.79,29.49445562]
[1738689354413,4.6116,216.84,216.79,29.49445562]
[1738689354624,13.41184853,216.82,216.77,29.49445562]
[1738689354806,4.6116,216.84,216.77,29.49445562]
[1738689355120,4.6116,216.84,216.72,1.0]
[1738689355121,20.0,216.76,216.75,29.49445562]
[1738689355314,13.41184853,216.75,216.74,29.49445562]
[1738689355826,13.41184853,216.79,216.74,29.49445562]
[1738689356015,13.41184853,216.79,216.56,1.0]
[1738689356016,0.50196,216.76,216.6,1.0]
[1738689356219,0.50196,216.76,216.48,29.49445562]
[1738689356220,1.15695895,216.83,216.75,29.49445562]
[1738689356420,1.15695895,216.83,216.59,29.49445562]
[1738689356421,29.49445562,216.84,216.74,29.49445562]
[1738689356603,20.0,216.79,216.74,29.49445562]
[1738689356928,13.41184853,216.72,216.65,2.0]
[1738689357315,0.50196,216.76,216.65,2.0]
[1738689357316,20.0,216.81,216.68,1.0]
[1738689357829,20.0,216.73,216.71,29.49445562]
[1738689358028,42.90630415,216.72,216.64,1.0]
[1738689358328,29.49445562,216.65,216.61,1.0]
[1738689358634,29.49445562,216.67,216.61,1.0]
[1738689358804,29.49445562,216.65,216.61,1.0]
[1738689359008,29.49445562,216.65,216.55,29.49445562]
[1738689359009,29.49445562,216.65,216.63,1.0]
[1738689359212,29.49445562,216.65,216.6,1.0]
[1738689359420,29.49445562,216.65,216.63,1.0]
[1738689360606,34.11025562,216.65,216.61,1.0]
[1738689360813,29.49445562,216.65,216.64,1.0]
[1738689361009,34.11025562,216.65,216.58,1.0]
[1738689361228,29.49445562,216.6,216.58,2.0]
[1738689361905,28.99445562,216.6,216.58,2.0]
[1738689362341,13.41184853,216.58,216.52,1.0]
[1738689362522,29.49445562,216.57,216.54,1.0]
[1738689363102,29.49445562,216.55,216.48,2.0]
[1738689363303,29.49445562,216.52,216.48,2.0]
[1738689363529,29.49445562,216.52,216.5,1.0]
[1738689363728,29.49445562,216.54,216.5,1.0]
[1738689363905,29.49445562,216.54,216.52,1.0]
[1738689364108,29.49445562,216.56,216.52,1.0]
[1738689364308,29.49445562,216.58,216.55,1.0]
[1738689364504,29.49445562,216.6,216.57,1.0]
[1738689365027,34.11085562,216.62,216.59,1.0]
[1738689365430,29.49445562,216.69,216.65,1.0]
[1738689365627,29.49445562,216.71,216.7,1.0]
[1738689365824,29.49445562,216.71,216.65,1.0]
[1738689366038,29.49445562,216.69,216.67,1.0]
[1738689366415,29.49445562,216.71,216.7,1.0]
[1738689367009,29.49445562,216.73,216.7,1.0]
[1738689367409,29.49445562,216.73,216.72,2.0]
[1738689367736,29.49445562,216.73,216.71,1.0]
[1738689368313,29.49445562,216.73,216.72,1.0]
[1738689368636,29.49445562,216.96,216.93,2.0]
[1738689368932,29.49445562,216.97,216.93,1.0]
[1738689369141,29.49445562,216.95,216.94,1.0]
[1738689369344,29.49445562,216.95,216.91,1.0]
[1738689369515,29.49445562,216.95,216.89,1.0]
[1738689369516,29.52445562,216.95,216.93,1.0]
[1738689369717,0.03,216.95,216.93,1.0]
[1738689370131,0.03,216.95,216.94,1.0]
[1738689370819,29.52445562,216.95,216.93,1.0]
[1738689371026,34.13395562,216.95,216.91,1.0]
[1738689371236,29.49445562,216.93,216.91,1.0]
[1738689371436,29.49445562,216.93,216.89,1.0]
[1738689371737,29.49445562,216.92,216.91,1.0]
[1738689371936,34.10415562,216.94,216.91,1.0]
[1738689372141,0.03,216.95,216.94,1.0]
[1738689372924,0.03,217.02,216.94,1.0]
[1738689373119,0.03,217.02,216.76,1.0]
[1738689373120,13.41184853,216.97,216.76,1.0]
[1738689373343,1.0,216.87,216.65,1.88136515]
[1738689373519,1.0,216.83,216.6,0.063]
[1738689373720,13.41184853,216.8,216.61,0.33455495]
[1738689373924,1.0,216.77,216.6,0.063]
[1738689374125,14.27715995,216.76,216.6,0.063]
[1738689374339,13.41184853,216.72,216.6,0.063]
[1738689374540,14.27715995,216.76,216.6,0.063]
[1738689374541,1.0,216.7,216.6,0.063]
[1738689374724,29.49445562,216.69,216.6,0.063]
[1738689374927,29.49445562,216.71,216.61,29.49445562]
[1738689375244,30.49445562,216.71,216.61,29.49445562]
[1738689375538,1.0,216.66,216.6,0.063]
[1738689375731,1.0,216.72,216.63,29.49445562]
[1738689376134,1.0,216.71,216.63,29.49445562]
[1738689376544,30.49445562,216.71,216.61,29.49445562]
[1738689376735,30.49445562,216.67,216.6,0.063]
[1738689377048,29.49445562,216.69,216.61,29.49445562]
[1738689377220,29.49445562,216.73,216.65,29.49445562]
[1738689377415,0.86557713,216.78,216.65,29.49445562]
[1738689377416,29.49445562,216.75,216.65,29.49445562]
[1738689377618,30.49445562,216.75,216.65,29.49445562]
[1738689378445,13.41184853,216.74,216.65,29.49445562]
[1738689378663,29.49445562,216.71,216.63,29.49445562]
[1738689378945,1.0,216.72,216.63,29.49445562]
[1738689379358,1.0,216.7,216.61,29.49445562]
[1738689379526,30.49445562,216.71,216.61,29.49445562]
[1738689379941,30.49445562,216.69,216.6,0.063]
[1738689380147,1.0,216.69,216.61,29.49445562]
[1738689380451,1.0,216.67,216.6,0.063]
[1738689380828,30.49445562,216.69,216.6,0.063]
[1738689381026,13.41184853,216.74,216.6,0.063]
[1738689381027,1.0,216.62,216.6,0.063]
[1738689381423,29.49445562,216.61,216.6,0.063]
[1738689381833,30.36033682,216.61,216.6,0.063]
[1738689382041,44.02316535,216.61,216.6,0.063]
[1738689382242,1.0,216.48,216.41,29.49445562]
[1738689382544,1.0,216.45,216.38,0.063]
[1738689382724,30.49445562,216.47,216.38,0.063]
[1738689382924,30.49445562,216.47,216.39,0.063]
[1738689383136,1.0,216.43,216.39,0.063]
[1738689383338,30.49445562,216.43,216.39,0.063]
[1738689383533,1.0,216.49,216.41,29.49445562]
[1738689383746,1.0,216.49,216.43,29.49445562]
[1738689384053,35.76665562,216.53,216.43,29.49445562]
[1738689384054,1.0,216.51,216.43,29.49445562]
[1738689384366,1.0,216.58,216.5,29.49445562]
[1738689384527,7.4359,216.63,216.56,29.49445562]
[1738689384722,6.4359,216.63,216.58,29.49445562]
[1738689384956,1.6019,216.68,216.58,29.49445562]
[1738689385260,1.0,216.66,216.6,29.49445562]
[1738689385467,1.0,216.68,216.6,29.49445562]
[1738689385649,1.0,216.7,216.64,29.49445562]
[1738689385945,0.03,216.71,216.66,29.49445562]
[1738689386151,0.03,216.71,216.59,29.49445562]
[1738689386152,1.0,216.67,216.59,29.49445562]
[1738689386345,1.0,216.69,216.61,29.49445562]
[1738689386522,30.52445562,216.71,216.63,29.49445562]
[1738689386728,30.52445562,216.71,216.65,29.49445562]
[1738689386729,0.03,216.71,216.65,29.49445562]
[1738689387063,0.03,216.71,216.63,29.49445562]
[1738689387662,1.03,216.71,216.63,29.49445562]
[1738689387830,29.52445562,216.71,216.63,29.49445562]
[1738689388028,1.0,216.69,216.62,4.6162]
[1738689388230,1.0,216.67,216.61,29.49445562]
[1738689388562,1.0,216.67,216.59,29.49445562]
[1738689388721,1.0,216.59,216.51,29.49445562]
[1738689388927,1.0,216.54,216.47,29.49445562]
[1738689389165,30.49445562,216.52,216.43,29.49445562]
[1738689389371,29.49445562,216.52,216.43,29.49445562]
[1738689389525,1.0,216.53,216.43,29.49445562]
[1738689389866,1.0,216.59,216.52,29.49445562]
[1738689390029,33.66282853,216.64,216.45,16.1699]
[1738689390234,29.49445562,216.61,216.51,29.49445562]
[1738689390432,29.49445562,216.59,216.49,29.49445562]
[1738689390627,29.49445562,216.57,216.47,29.49445562]
[1738689390827,29.49445562,216.55,216.45,34.11445562]
[1738689391262,29.49445562,216.53,216.45,4.62]
[1738689392060,29.49445562,216.53,216.43,34.11465562]
[1738689392243,0.12549,216.49,216.4,34.11535562]
[1738689392564,29.49445562,216.48,216.4,4.6209]
[1738689393133,29.49445562,216.55,216.45,29.49445562]
[1738689393448,29.49445562,216.53,216.43,29.49445562]
[1738689393830,29.49445562,216.55,216.45,29.49445562]
[1738689394161,29.49445562,216.5,216.41,34.11525562]
[1738689394361,29.49445562,216.5,216.41,4.6208]
[1738689394662,29.49445562,216.54,216.43,29.49445562]
[1738689394827,29.49445562,216.54,216.45,29.49445562]
[1738689395147,29.49445562,216.54,216.39,0.063]
[1738689395148,29.49445562,216.48,216.39,0.063]
[1738689395333,29.49445562,216.48,216.39,4.6841]
[1738689396333,29.49445562,216.44,216.39,0.063]
[1738689396638,0.86642523,216.47,216.39,0.063]
[1738689396639,29.49445562,216.46,216.39,0.063]
[1738689396834,0.99197904,216.45,216.39,0.063]
[1738689397055,29.49445562,216.5,216.39,0.063]
[1738689397230,29.49445562,216.46,216.39,0.063]
[1738689397834,29.49445562,216.5,216.39,29.55745562]
[1738689398040,29.49445562,216.5,216.41,29.49445562]
[1738689398235,0.8663214,216.49,216.4,4.621]
[1738689398434,29.49445562,216.5,216.4,4.621]
[1738689398435,29.49445562,216.48,216.4,4.621]
[1738689398656,30.36089704,216.48,216.39,0.063]
[1738689398949,29.49445562,216.48,216.39,4.6842]
[1738689399260,0.86636066,216.52,216.43,29.49445562]
[1738689399433,30.36062132,216.54,216.43,29.49445562]
[1738689399639,29.49445562,216.52,216.41,29.49445562]
[1738689399835,34.11295562,216.52,216.42,4.6206]
[1738689400141,29.49445562,216.52,216.42,4.6206]
[1738689400560,29.49445562,216.52,216.39,4.6842]
[1738689400561,29.49445562,216.48,216.39,4.6842]
[1738689400735,29.49445562,216.46,216.39,0.063]
[1738689400932,30.36099765,216.46,216.39,0.063]
[1738689401240,29.49445562,216.44,216.39,0.063]
[1738689401553,29.49445562,216.4,216.39,0.063]
[1738689401762,43.03179415,216.4,216.39,0.063]
[1738689401932,18.28402853,216.39,216.38,0.063]
[1738689402132,48.77088111,216.39,216.38,0.063]
[1738689402333,19.15093549,216.39,216.38,0.063]
[1738689402939,13.53733853,216.34,216.19,34.11975562]
[1738689403133,29.49445562,216.27,216.17,29.49445562]
[1738689403337,29.49445562,216.25,216.17,29.49445562]
[1738689403539,29.49445562,216.27,216.17,29.49445562]
[1738689404037,29.49445562,216.25,216.15,36.5142596]
[1738689404249,29.49445562,216.25,216.16,4.6261]
[1738689404866,29.49445562,216.25,216.15,29.55745562]
[1738689405051,29.49445562,216.25,216.16,4.6261]
[1738689405360,0.12549,216.31,216.21,29.55745562]
[1738689405361,29.49445562,216.31,216.21,29.55745562]
[1738689405538,29.49445562,216.29,216.21,0.063]
[1738689405964,11.5557,216.35,216.21,0.063]
[1738689405965,29.49445562,216.27,216.21,0.063]
[1738689406133,29.49445562,216.25,216.21,0.063]
[1738689406468,29.49445562,216.23,216.21,0.063]
[1738689406761,13.53733853,216.22,216.21,0.063]
[1738689407342,29.49445562,216.25,216.21,0.063]
[1738689407652,34.11795562,216.29,216.21,0.063]
[1738689407958,34.11755562,216.31,216.21,29.55745562]
[1738689408259,29.49445562,216.35,216.25,29.49445562]
[1738689408645,29.49445562,216.37,216.27,29.49445562]
[1738689409043,13.53733853,216.38,216.29,29.49445562]
[1738689409243,0.86679004,216.38,216.29,29.49445562]
[1738689409576,29.49445562,216.37,216.27,29.49445562]
[1738689409872,13.53733853,216.36,216.27,29.49445562]
[1738689410074,4.622,216.36,216.27,29.49445562]
[1738689410374,0.12549,216.36,216.27,29.49445562]
[1738689410577,43.03179415,216.34,216.24,29.49445562]
[1738689410957,43.03179415,216.32,216.22,29.49445562]
[1738689411963,13.53733853,216.33,216.24,29.49445562]
[1738689412159,29.49445562,216.34,216.24,29.49445562]
[1738689412371,34.11585562,216.38,216.28,29.49445562]
[1738689413058,29.49445562,216.32,216.22,29.49445562]
[1738689413266,13.66282853,216.31,216.22,29.49445562]
[1738689413466,13.53733853,216.31,216.22,29.49445562]
[1738689414176,4.6232,216.3,216.27,0.063]
[1738689414591,14.40448204,216.29,216.27,0.063]
[1738689414939,29.49445562,216.28,216.27,0.063]
[1738689415358,43.15728415,216.28,216.27,0.063]
[1738689416060,0.12549,216.27,216.21,0.063]
[1738689416245,29.49445562,216.23,216.21,0.063]
[1738689416664,0.12549,216.25,216.21,0.063]
[1738689416665,29.61994562,216.25,216.21,0.063]
[1738689416965,29.49445562,216.27,216.21,0.063]
[1738689417147,29.49445562,216.29,216.21,0.063]
[1738689417359,34.98490545,216.31,216.21,0.063]
[1738689417563,34.98490545,216.31,216.22,29.49445562]
[1738689418280,0.86734983,216.31,216.24,29.49445562]
[1738689418482,29.49445562,216.37,216.28,29.49445562]
[1738689418766,30.36131951,216.39,216.3,29.49445562]
[1738689419084,29.49445562,216.37,216.28,29.49445562]
[1738689419370,29.49445562,216.29,216.21,0.063]
[1738689419543,29.49445562,216.31,216.21,0.063]
[1738689419741,29.49445562,216.31,216.22,29.49445562]
[1738689420176,0.86710056,216.3,216.22,29.49445562]
[1738689420358,0.86710056,216.3,216.21,0.063]
[1738689420359,29.61994562,216.29,216.21,0.063]
[1738689420554,29.49445562,216.25,216.21,0.063]
[1738689420748,29.49445562,216.23,216.21,0.063]
[1738689420949,30.36194941,216.23,216.21,0.063]
[1738689421256,29.49445562,216.27,216.21,0.063]
[1738689421464,30.36191191,216.29,216.21,0.063]
[1738689421691,29.49445562,216.23,216.21,0.063]
[1738689421851,13.66282853,216.22,216.21,0.063]
[1738689422252,18.28772853,216.22,216.21,0.063]
[1738689423054,0.12549,216.19,216.15,0.063]
[1738689423255,43.15728415,216.16,216.15,0.0001]
[1738689423570,73.77057609,216.16,216.15,0.0001]
[1738689423773,20.37647,216.12,215.98,29.49445562]
[1738689423963,29.49445562,216.07,215.98,29.49445562]
[1738689424157,0.12549,216.04,215.96,29.49445562]
[1738689424358,0.12549,216.04,215.89,6.5739375]
[1738689424359,29.49445562,216.0,215.9,29.49445562]
[1738689424569,29.49445562,216.0,215.88,29.49445562]
[1738689424752,43.15728415,216.0,215.86,29.49445562]
[1738689425075,43.15728415,216.0,215.84,4.633]
[1738689425076,43.28277415,216.0,215.84,29.49445562]
[1738689425246,29.49445562,215.92,215.84,29.49445562]
[1738689425649,29.49445562,215.9,215.82,29.49445562]
[1738689425865,30.36316603,216.03,215.89,29.49445562]
[1738689426152,1.0,216.15,215.82,30.61994562]
[1738689426153,37.60065562,216.07,215.98,29.49445562]
[1738689426381,29.49445562,216.09,216.0,29.49445562]
[1738689426554,4.6266,216.14,216.02,29.49445562]
[1738689426555,29.49445562,216.11,216.02,29.49445562]
[1738689426950,29.49445562,216.11,216.0,29.49445562]
[1738689427163,29.49445562,216.11,215.93,30.49445562]
[1738689427164,29.49445562,216.09,215.98,29.49445562]
[1738689427387,29.49445562,216.05,215.95,29.49445562]
[1738689427678,29.49445562,216.11,216.01,29.49445562]
[1738689428094,34.12035562,216.18,216.08,29.49445562]
[1738689428390,29.49445562,216.22,216.12,29.49445562]
[1738689428953,35.95715562,216.24,216.14,29.49445562]
[1738689429151,29.49445562,216.22,216.14,29.49445562]
[1738689429578,29.49445562,216.18,216.08,29.49445562]
[1738689429874,29.49445562,216.2,216.1,29.49445562]
[1738689430066,29.49445562,216.22,216.12,29.49445562]
[1738689430279,29.49445562,216.24,216.14,29.49445562]
[1738689430653,29.49445562,216.22,216.12,29.49445562]
[1738689430860,5.49187772,216.24,216.16,29.49445562]
[1738689430861,29.49445562,216.24,216.16,29.49445562]
[1738689431267,29.49445562,216.24,216.14,29.49445562]
[1738689431473,29.49445562,216.22,216.12,29.49445562]
[1738689431861,29.49445562,216.19,216.08,29.49445562]
[1738689432064,30.36202203,216.18,216.04,4.6286]
[1738689432265,16.1864,216.23,216.05,0.33987597]
[1738689432577,29.49445562,216.23,216.13,29.49445562]
[1738689432779,13.53733853,216.2,216.11,29.49445562]
[1738689433079,29.49445562,216.15,216.05,29.49445562]
[1738689433875,29.49445562,216.15,216.02,4.6292]
[1738689434077,29.49445562,216.15,216.05,29.49445562]
[1738689434255,34.12135562,216.13,216.03,29.49445562]
[1738689434455,29.49445562,216.11,216.01,34.12375562]
[1738689434659,29.49445562,216.13,216.03,29.49445562]
[1738689434862,34.12035562,216.18,216.07,29.49445562]
[1738689435070,1.0,216.29,216.02,0.34002921]
[1738689435071,34.11985562,216.2,216.1,29.49445562]
[1738689435378,29.49445562,216.15,216.06,29.49445562]
[1738689435877,29.49445562,216.11,216.01,34.12375562]
[1738689436260,29.49445562,216.13,216.03,29.49445562]
[1738689436455,29.49445562,216.13,216.05,29.49445562]
[1738689436798,0.86774211,216.15,216.03,29.49445562]
[1738689436972,29.49445562,216.12,216.01,29.49445562]
[1738689437304,29.49445562,216.13,216.03,29.49445562]
[1738689437457,29.49445562,216.14,215.98,4.6299]
[1738689437656,0.25098,216.13,216.04,29.49445562]
[1738689437857,13.41184853,216.16,215.98,4.6299]
[1738689437858,29.49445562,216.16,216.06,29.49445562]
[1738689438301,29.49445562,216.18,216.1,29.49445562]
[1738689438465,29.49445562,216.18,216.1,34.12175562]
[1738689439091,29.49445562,216.2,216.1,34.12175562]
[1738689439289,29.49445562,216.2,216.12,29.49445562]
[1738689439597,29.49445562,216.16,216.06,29.49445562]
[1738689439768,29.49445562,216.12,216.04,29.49445562]
[1738689440088,14.40501354,216.15,216.04,0.063]
[1738689440089,29.49445562,216.08,216.04,0.063]
[1738689440294,29.49445562,216.06,216.04,0.063]
[1738689441455,13.66282853,216.05,216.04,0.063]
[1738689442269,13.78831853,216.05,216.04,0.063]
[1738689442570,13.78831853,216.05,215.83,29.2226]
[1738689442571,13.66282853,215.99,215.87,29.49445562]
[1738689442797,0.25098,215.95,215.87,29.49445562]
[1738689443000,29.49445562,215.96,215.87,34.12675562]
[1738689443493,29.49445562,215.94,215.85,34.12705562]
[1738689443784,29.49445562,215.91,215.83,29.49445562]
[1738689443993,0.86849307,215.97,215.87,29.49445562]
[1738689443994,29.49445562,215.97,215.87,29.49445562]
[1738689444567,29.49445562,215.97,215.88,4.6322]
[1738689445085,0.12549,216.03,215.88,4.6322]
[1738689445086,29.49445562,216.01,215.91,29.49445562]
[1738689445266,29.49445562,215.98,215.89,29.49445562]
[1738689445577,29.49445562,215.98,215.88,4.6322]
[1738689445578,0.25098,215.97,215.88,4.6322]
[1738689445879,29.49445562,215.96,215.85,29.49445562]
[1738689446382,29.49445562,215.96,215.87,29.49445562]
[1738689446599,29.49445562,215.94,215.87,4.6322]
[1738689446758,29.49445562,215.88,215.79,34.12855562]
[1738689446959,29.49445562,215.86,215.79,4.6341]
[1738689447169,29.49445562,215.9,215.81,29.49445562]
[1738689447380,29.49445562,215.9,215.79,4.6341]
[1738689447381,29.49445562,215.96,215.87,29.49445562]
[1738689447691,29.49445562,215.98,215.89,29.49445562]
[1738689448158,29.49445562,216.0,215.91,29.49445562]
[1738689448359,29.49445562,216.07,215.98,29.49445562]
[1738689448576,29.49445562,216.11,216.02,29.49445562]
[1738689449084,29.49445562,216.11,215.98,11.575]
[1738689449085,29.49445562,216.05,215.97,4.6301]
[1738689449288,29.49445562,215.99,215.9,29.49445562]
[1738689449489,29.49445562,215.99,215.89,4.6319]
[1738689450177,14.28017605,216.03,215.89,4.6319]
[1738689450178,29.49445562,216.03,215.94,29.49445562]
[1738689450564,0.25098,216.04,215.96,29.49445562]
[1738689450759,0.25098,216.04,215.97,4.6302]
[1738689450971,29.49445562,216.03,215.94,29.49445562]
[1738689452377,11.69359,216.11,215.9,16.2111]
[1738689452378,29.52445562,216.18,216.02,29.49445562]
[1738689452573,29.52445562,216.18,216.09,29.49445562]
[1738689452773,34.15025562,216.18,216.08,4.6277]
[1738689452975,29.49445562,216.16,216.07,29.49445562]
[1738689453187,29.49445562,216.16,215.93,34.39980396]
[1738689453188,29.49445562,216.1,216.01,29.49445562]
[1738689453486,29.49445562,216.12,216.03,29.49445562]
[1738689453870,29.74543562,216.14,216.03,29.49445562]
[1738689454070,29.74543562,216.14,216.05,29.49445562]
[1738689454470,0.12549,216.11,216.03,29.49445562]
[1738689454695,0.12549,216.07,215.97,29.49445562]
[1738689454987,34.12235562,216.08,215.99,29.49445562]
[1738689455381,0.12549,216.06,215.99,29.49445562]
[1738689455998,0.25098,216.04,215.95,34.12515562]
[1738689456291,0.25098,216.01,215.95,29.49445562]
[1738689456478,29.49445562,216.04,215.95,29.49445562]
[1738689456678,6.59139,216.06,215.99,29.49445562]
[1738689456679,6.4659,216.06,215.99,29.49445562]
[1738689456881,29.49445562,216.08,215.99,29.49445562]
[1738689456882,13.66282853,216.07,216.0,4.6296]
[1738689457093,13.66282853,216.07,215.99,34.12415562]
[1738689457396,13.66282853,216.03,215.93,34.12535562]
[1738689457893,13.66282853,216.03,215.95,29.49445562]
[1738689458278,0.25098,216.01,215.93,34.12535562]
[1738689458793,13.66282853,216.01,215.93,34.12535562]
[1738689458969,0.25098,216.01,215.93,34.12535562]
[1738689459171,29.49445562,216.02,215.93,34.12535562]